[Event "Late-Titled-Tuesday-Blitz-May-28-2024"]
[Site "Chess.com"]
[Date "2024.05.28"]
[Round "6"]
[White "Kirill_Klukin"]
[Black "ansko1999"]
[Result "1-0"]
[WhiteElo "2886"]
[BlackElo "2601"]
[TimeControl "180+1"]
[EndTime "15:08:22 PDT"]
[Termination "Kirill_Klukin won by checkmate"]

1. d4 {[%clk 0:03:00.9]} 1... d5 {[%clk 0:02:59.7]} 2. c4 {[%clk 0:03:01.1]}
2... c5 {[%clk 0:03:00.1]} 3. cxd5 {[%clk 0:03:01.2]} 3... Nf6 {[%clk
0:02:59.5]} 4. Nc3 {[%clk 0:02:55.9]} 4... Nxd5 {[%clk 0:02:43.8]} 5. e4 {[%clk
0:02:51.2]} 5... Nxc3 {[%clk 0:02:43]} 6. bxc3 {[%clk 0:02:52.1]} 6... cxd4
{[%clk 0:02:41.9]} 7. cxd4 {[%clk 0:02:53]} 7... g6 {[%clk 0:02:34.4]} 8. Nf3
{[%clk 0:02:53]} 8... Bg7 {[%clk 0:02:34.4]} 9. Be2 {[%clk 0:02:46.1]} 9... O-O
{[%clk 0:02:33.4]} 10. O-O {[%clk 0:02:42.2]} 10... Nc6 {[%clk 0:02:29.7]} 11.
Be3 {[%clk 0:02:41.9]} 11... Bg4 {[%clk 0:02:28.4]} 12. d5 {[%clk 0:02:34.1]}
12... Bxa1 {[%clk 0:02:07.5]} 13. Qxa1 {[%clk 0:02:30.9]} 13... Nb4 {[%clk
0:02:02.1]} 14. Bh6 {[%clk 0:02:24.5]} 14... f6 {[%clk 0:01:49.6]} 15. Bxf8
{[%clk 0:02:24.7]} 15... Kxf8 {[%clk 0:01:47.9]} 16. Nd4 {[%clk 0:02:21.8]}
16... Bd7 {[%clk 0:01:40.5]} 17. Qb2 {[%clk 0:02:21.7]} 17... Qb6 {[%clk
0:01:38.7]} 18. Rb1 {[%clk 0:02:18.7]} 18... Na6 {[%clk 0:01:25.7]} 19. Bxa6
{[%clk 0:02:03.3]} 19... Qxb2 {[%clk 0:01:07.1]} 20. Rxb2 {[%clk 0:02:02]} 20...
bxa6 {[%clk 0:01:07.8]} 21. Rb7 {[%clk 0:01:59.3]} 21... Ke8 {[%clk 0:01:03.5]}
22. f3 {[%clk 0:01:56.9]} 22... Bc8 {[%clk 0:00:53.7]} 23. Rb2 {[%clk
0:01:51.1]} 23... Bd7 {[%clk 0:00:51.9]} 24. Kf2 {[%clk 0:01:49.6]} 24... Rc8
{[%clk 0:00:50.6]} 25. Ke3 {[%clk 0:01:19.6]} 25... Rc3+ {[%clk 0:00:36.1]} 26.
Kf4 {[%clk 0:01:19.8]} 26... Bb5 {[%clk 0:00:27.4]} 27. Nxb5 {[%clk 0:00:46]}
27... axb5 {[%clk 0:00:28.3]} 28. Rxb5 {[%clk 0:00:46.7]} 28... Rc2 {[%clk
0:00:28.2]} 29. Rb8+ {[%clk 0:00:45.5]} 29... Kd7 {[%clk 0:00:20.6]} 30. Rb7+
{[%clk 0:00:45.9]} 30... Kd6 {[%clk 0:00:20.4]} 31. Rxa7 {[%clk 0:00:36.9]}
31... Rxg2 {[%clk 0:00:20.4]} 32. h4 {[%clk 0:00:37.6]} 32... h5 {[%clk
0:00:14.2]} 33. Ra6+ {[%clk 0:00:36.3]} 33... Kd7 {[%clk 0:00:14.2]} 34. Ra7+
{[%clk 0:00:35.2]} 34... Kd6 {[%clk 0:00:14.4]} 35. Ra8 {[%clk 0:00:35.9]} 35...
g5+ {[%clk 0:00:08.5]} 36. hxg5 {[%clk 0:00:36]} 36... Rxg5 {[%clk 0:00:06.7]}
37. a4 {[%clk 0:00:25.1]} 37... Rg2 {[%clk 0:00:06.8]} 38. a5 {[%clk 0:00:25.3]}
38... h4 {[%clk 0:00:05.7]} 39. Rd8+ {[%clk 0:00:23.2]} 39... Kc7 {[%clk
0:00:05.7]} 40. Rh8 {[%clk 0:00:23.8]} 40... Ra2 {[%clk 0:00:05.3]} 41. Rxh4
{[%clk 0:00:21.7]} 41... Rxa5 {[%clk 0:00:05.8]} 42. Rh8 {[%clk 0:00:22.1]}
42... Ra3 {[%clk 0:00:04.5]} 43. Re8 {[%clk 0:00:19.4]} 43... Kd7 {[%clk
0:00:04.9]} 44. Rb8 {[%clk 0:00:19.8]} 44... Kd6 {[%clk 0:00:05.3]} 45. Rb6+
{[%clk 0:00:20.3]} 45... Kd7 {[%clk 0:00:05.9]} 46. Kg4 {[%clk 0:00:20]} 46...
Ra1 {[%clk 0:00:05.1]} 47. f4 {[%clk 0:00:20]} 47... Rf1 {[%clk 0:00:04.6]} 48.
Kf5 {[%clk 0:00:20.2]} 48... Rf2 {[%clk 0:00:04.7]} 49. Rb7+ {[%clk 0:00:19.9]}
49... Kd8 {[%clk 0:00:03.7]} 50. Ra7 {[%clk 0:00:13.8]} 50... Rf1 {[%clk
0:00:03.4]} 51. Ke6 {[%clk 0:00:03.9]} 51... Rxf4 {[%clk 0:00:03.2]} 52. Rd7+
{[%clk 0:00:04.7]} 52... Kc8 {[%clk 0:00:02.6]} 53. Rxe7 {[%clk 0:00:05.3]}
53... Rxe4+ {[%clk 0:00:03]} 54. Kxf6 {[%clk 0:00:06]} 54... Rf4+ {[%clk
0:00:01.2]} 55. Ke5 {[%clk 0:00:05.2]} 55... Rf1 {[%clk 0:00:02]} 56. Kd6 {[%clk
0:00:05.3]} 56... Rf6+ {[%clk 0:00:01.5]} 57. Re6 {[%clk 0:00:05.8]} 57... Rf7
{[%clk 0:00:01.7]} 58. Re8+ {[%clk 0:00:05.6]} 58... Kb7 {[%clk 0:00:02.3]} 59.
Re7+ {[%clk 0:00:05.7]} 59... Rxe7 {[%clk 0:00:01.8]} 60. Kxe7 {[%clk
0:00:06.6]} 60... Kc7 {[%clk 0:00:01]} 61. d6+ {[%clk 0:00:07.5]} 61... Kc6
{[%clk 0:00:01.6]} 62. d7 {[%clk 0:00:08.4]} 62... Kb6 {[%clk 0:00:01]} 63.
d8=Q+ {[%clk 0:00:08.8]} 63... Ka7 {[%clk 0:00:01.6]} 64. Qd2 {[%clk 0:00:08.7]}
64... Ka6 {[%clk 0:00:01.7]} 65. Qb2 {[%clk 0:00:08.9]} 65... Ka7 {[%clk
0:00:02]} 66. Kd6 {[%clk 0:00:09.8]} 66... Ka8 {[%clk 0:00:02.8]} 67. Kc5 {[%clk
0:00:10.7]} 67... Ka7 {[%clk 0:00:02.6]} 68. Kc6 {[%clk 0:00:11.4]} 68... Ka8
{[%clk 0:00:02.9]} 69. Qb1 {[%clk 0:00:12]} 69... Ka7 {[%clk 0:00:03.2]} 70. Qb3
{[%clk 0:00:12.8]} 70... Ka8 {[%clk 0:00:03.8]} 71. Qb4 {[%clk 0:00:13.5]} 71...
Ka7 {[%clk 0:00:04.4]} 72. Qb5 {[%clk 0:00:14.2]} 72... Ka8 {[%clk 0:00:05]} 73.
Kc7 {[%clk 0:00:14.9]} 73... Ka7 {[%clk 0:00:05.5]} 74. Kc8 {[%clk 0:00:15.6]}
74... Ka8 {[%clk 0:00:06.1]} 75. Qb4 {[%clk 0:00:16.3]} 75... Ka7 {[%clk
0:00:06.8]} 76. Qb3 {[%clk 0:00:17]} 76... Ka6 {[%clk 0:00:07.7]} 77. Qb2 {[%clk
0:00:17.5]} 77... Ka5 {[%clk 0:00:08.6]} 78. Qb1 {[%clk 0:00:18.1]} 78... Ka4
{[%clk 0:00:09.5]} 79. Kc7 {[%clk 0:00:18.7]} 79... Ka3 {[%clk 0:00:10.4]} 80.
Kc6 {[%clk 0:00:19.4]} 80... Ka4 {[%clk 0:00:10.9]} 81. Kc5 {[%clk 0:00:20]}
81... Ka5 {[%clk 0:00:11.6]} 82. Qa1# {[%clk 0:00:20.6]} 1-0

[Event "Late-Titled-Tuesday-Blitz-May-28-2024"]
[Site "Chess.com"]
[Date "2024.05.28"]
[Round "6"]
[White "djjohnnywoo"]
[Black "Qvalda"]
[Result "0-1"]
[WhiteElo "2132"]
[BlackElo "2400"]
[TimeControl "180+1"]
[EndTime "15:08:23 PDT"]
[Termination "Qvalda won by resignation"]

1. b3 {[%clk 0:01:19.7]} 1... e5 {[%clk 0:02:58.2]} 2. Bb2 {[%clk 0:01:18.1]}
2... Nc6 {[%clk 0:02:56.1]} 3. e3 {[%clk 0:01:18.2]} 3... d5 {[%clk 0:02:55.3]}
4. Nf3 {[%clk 0:01:16.9]} 4... e4 {[%clk 0:02:40.8]} 5. Ng1 {[%clk 0:01:13.9]}
5... Nf6 {[%clk 0:02:38.8]} 6. d4 {[%clk 0:01:12.4]} 6... Bd6 {[%clk 0:02:36.2]}
7. a3 {[%clk 0:01:12.1]} 7... O-O {[%clk 0:02:35.5]} 8. g3 {[%clk 0:01:11.8]}
8... Ng4 {[%clk 0:02:15.4]} 9. Nh3 {[%clk 0:01:10.3]} 9... f5 {[%clk 0:02:14.7]}
10. c4 {[%clk 0:00:58.9]} 10... Kh8 {[%clk 0:02:01.3]} 11. c5 {[%clk 0:00:57.6]}
11... Be7 {[%clk 0:02:00.7]} 12. Be2 {[%clk 0:00:56.2]} 12... Nf6 {[%clk
0:01:57.2]} 13. Nc3 {[%clk 0:00:51.3]} 13... Be6 {[%clk 0:01:54.4]} 14. Qc2
{[%clk 0:00:50.2]} 14... b6 {[%clk 0:01:24.6]} 15. Nf4 {[%clk 0:00:48.6]} 15...
Bf7 {[%clk 0:01:21.9]} 16. b4 {[%clk 0:00:47.1]} 16... bxc5 {[%clk 0:01:20.6]}
17. bxc5 {[%clk 0:00:43.1]} 17... Rb8 {[%clk 0:01:20.5]} 18. Bb5 {[%clk
0:00:38]} 18... Na5 {[%clk 0:01:17.6]} 19. h4 {[%clk 0:00:37.6]} 19... c6 {[%clk
0:01:15.7]} 20. Ba4 {[%clk 0:00:36]} 20... Nc4 {[%clk 0:01:14.3]} 21. Bc1 {[%clk
0:00:36.3]} 21... Qa5 {[%clk 0:01:12.1]} 22. Bd2 {[%clk 0:00:34]} 22... Rb2
{[%clk 0:01:11.1]} 23. Nd1 {[%clk 0:00:30.3]} 23... Qxd2+ {[%clk 0:01:02.1]} 24.
Qxd2 {[%clk 0:00:30.5]} 24... Rxd2 {[%clk 0:01:01.5]} 25. Bb3 {[%clk 0:00:29.2]}
25... Rb8 {[%clk 0:00:44.8]} 26. Bxc4 {[%clk 0:00:29.4]} 26... Rxd1+ {[%clk
0:00:44.5]} 27. Kxd1 {[%clk 0:00:29.2]} 27... dxc4 {[%clk 0:00:45.4]} 28. Kc2
{[%clk 0:00:29.5]} 28... Nd5 {[%clk 0:00:32.4]} 29. Rhb1 {[%clk 0:00:29.9]}
29... Re8 {[%clk 0:00:28.4]} 30. Rb7 {[%clk 0:00:28.6]} 30... a5 {[%clk
0:00:26.9]} 31. Rab1 {[%clk 0:00:28]} 31... g5 {[%clk 0:00:23]} 32. Rb8 {[%clk
0:00:28.4]} 32... gxf4 {[%clk 0:00:20.6]} 33. Rxe8+ {[%clk 0:00:28.6]} 33...
Bxe8 {[%clk 0:00:20.8]} 34. Rb8 {[%clk 0:00:28.7]} 34... Nf6 {[%clk 0:00:18.7]}
35. gxf4 {[%clk 0:00:28.7]} 35... Kg7 {[%clk 0:00:18.4]} 36. Rc8 {[%clk
0:00:26.9]} 36... Kf7 {[%clk 0:00:17.3]} 37. Ra8 {[%clk 0:00:26.9]} 37... Nd5
{[%clk 0:00:13.7]} 38. Rxa5 {[%clk 0:00:27.1]} 38... Bxh4 {[%clk 0:00:13.6]} 39.
Ra7+ {[%clk 0:00:26.6]} 39... Ke6 {[%clk 0:00:12.7]} 40. Rxh7 {[%clk 0:00:26.2]}
40... Bxf2 {[%clk 0:00:12.9]} 41. a4 {[%clk 0:00:25.9]} 41... Nxe3+ {[%clk
0:00:10.6]} 42. Kc3 {[%clk 0:00:26.1]} 42... Be1+ {[%clk 0:00:09.6]} 43. Kb2
{[%clk 0:00:24.9]} 43... Nd5 {[%clk 0:00:09.2]} 44. Rh6+ {[%clk 0:00:23.7]}
44... Nf6 {[%clk 0:00:08.3]} 45. Kc2 {[%clk 0:00:21.1]} 45... Bf7 {[%clk
0:00:07.7]} 46. Rh8 {[%clk 0:00:20.7]} 46... Kd5 {[%clk 0:00:05.6]} 47. Ra8
{[%clk 0:00:20.8]} 47... Kxd4 {[%clk 0:00:05.4]} 48. a5 {[%clk 0:00:21.5]} 48...
Bxa5 {[%clk 0:00:04.9]} 49. Rxa5 {[%clk 0:00:20.7]} 49... Bd5 {[%clk 0:00:05.5]}
50. Ra8 {[%clk 0:00:20]} 50... Nh5 {[%clk 0:00:05.6]} 51. Rf8 {[%clk 0:00:20.2]}
51... Nxf4 {[%clk 0:00:05.6]} 52. Rxf5 {[%clk 0:00:20.1]} 52... Ne6 {[%clk
0:00:05.8]} 53. Rf6 {[%clk 0:00:18.2]} 53... Nxc5 {[%clk 0:00:05.9]} 54. Rh6
{[%clk 0:00:18]} 54... Nd3 {[%clk 0:00:06]} 55. Rh1 {[%clk 0:00:16.8]} 55...
Nb4+ {[%clk 0:00:05.7]} 56. Kc1 {[%clk 0:00:15.9]} 56... Na6 {[%clk 0:00:06.6]}
57. Rd1+ {[%clk 0:00:15.4]} 57... Ke5 {[%clk 0:00:06.6]} 58. Re1 {[%clk
0:00:15.5]} 58... Nc5 {[%clk 0:00:07.1]} 59. Rh1 {[%clk 0:00:14.8]} 59... Nd3+
{[%clk 0:00:07.3]} 60. Kc2 {[%clk 0:00:14.2]} 60... Kd4 {[%clk 0:00:08.2]} 61.
Rh8 {[%clk 0:00:13.3]} 61... e3 {[%clk 0:00:06.3]} 62. Re8 {[%clk 0:00:12.9]}
62... Ne5 {[%clk 0:00:04.5]} 63. Kd1 {[%clk 0:00:11.7]} 63... Be4 {[%clk
0:00:04.1]} 64. Ke1 {[%clk 0:00:11.6]} 64... Bd3 {[%clk 0:00:03.4]} 65. Rd8+
{[%clk 0:00:10.7]} 65... Ke4 {[%clk 0:00:03.6]} 66. Re8 {[%clk 0:00:11.4]} 66...
e2 {[%clk 0:00:03.9]} 67. Kd2 {[%clk 0:00:10.6]} 67... Kd4 {[%clk 0:00:03.7]}
68. Rd8+ {[%clk 0:00:10.1]} 68... Kc5 {[%clk 0:00:04]} 69. Re8 {[%clk
0:00:09.1]} 69... Nf3+ {[%clk 0:00:04.1]} 70. Kc3 {[%clk 0:00:09.4]} 70... e1=Q+
{[%clk 0:00:04.2]} 71. Rxe1 {[%clk 0:00:10.1]} 71... Nxe1 {[%clk 0:00:04.5]} 72.
Kd2 {[%clk 0:00:10.7]} 72... Nf3+ {[%clk 0:00:04.7]} 73. Kc3 {[%clk 0:00:10.9]}
73... Ng5 {[%clk 0:00:05.6]} 74. Kd2 {[%clk 0:00:10.6]} 74... Nh7 {[%clk
0:00:06.5]} 0-1

[Event "Late-Titled-Tuesday-Blitz-May-28-2024"]
[Site "Chess.com"]
[Date "2024.05.28"]
[Round "6"]
[White "SRob2003"]
[Black "Flaccidmoves"]
[Result "1-0"]
[WhiteElo "2681"]
[BlackElo "2499"]
[TimeControl "180+1"]
[EndTime "15:08:24 PDT"]
[Termination "SRob2003 won by checkmate"]

1. d4 {[%clk 0:02:59.7]} 1... Nf6 {[%clk 0:03:00.3]} 2. c4 {[%clk 0:02:58.2]}
2... g6 {[%clk 0:03:00.6]} 3. Nc3 {[%clk 0:02:58]} 3... d5 {[%clk 0:03:01.2]} 4.
h4 {[%clk 0:02:58.1]} 4... c5 {[%clk 0:02:57.7]} 5. cxd5 {[%clk 0:02:38.6]} 5...
Nxd5 {[%clk 0:02:53.8]} 6. e4 {[%clk 0:02:32.7]} 6... Nxc3 {[%clk 0:02:51.2]} 7.
bxc3 {[%clk 0:02:33.6]} 7... Bg7 {[%clk 0:02:44.7]} 8. Be3 {[%clk 0:02:21.8]}
8... cxd4 {[%clk 0:02:42.6]} 9. cxd4 {[%clk 0:02:22.7]} 9... Qa5+ {[%clk
0:02:42.1]} 10. Qd2 {[%clk 0:02:22.1]} 10... Qxd2+ {[%clk 0:02:41.5]} 11. Kxd2
{[%clk 0:02:23]} 11... Nc6 {[%clk 0:02:41.4]} 12. Ne2 {[%clk 0:02:22.6]} 12...
O-O {[%clk 0:02:33.7]} 13. Rd1 {[%clk 0:02:18.4]} 13... Rd8 {[%clk 0:02:29.5]}
14. Kc1 {[%clk 0:02:14.8]} 14... e6 {[%clk 0:02:12.1]} 15. h5 {[%clk 0:02:02.8]}
15... b6 {[%clk 0:02:10.7]} 16. h6 {[%clk 0:01:40.3]} 16... Bh8 {[%clk
0:02:10.1]} 17. e5 {[%clk 0:01:40.1]} 17... Nb4 {[%clk 0:01:57.7]} 18. Nc3
{[%clk 0:01:38.2]} 18... Bb7 {[%clk 0:01:54.2]} 19. Kb2 {[%clk 0:01:14.6]} 19...
f6 {[%clk 0:01:47.5]} 20. f4 {[%clk 0:01:13]} 20... g5 {[%clk 0:01:35.7]} 21.
Bc4 {[%clk 0:00:53.1]} 21... Nd5 {[%clk 0:01:27.2]} 22. Nxd5 {[%clk 0:00:44.5]}
22... Bxd5 {[%clk 0:01:28.1]} 23. Bxd5 {[%clk 0:00:44.6]} 23... Rxd5 {[%clk
0:01:28.5]} 24. g3 {[%clk 0:00:43.7]} 24... Rad8 {[%clk 0:01:07.4]} 25. Rc1
{[%clk 0:00:43.9]} 25... Kf7 {[%clk 0:00:54.1]} 26. Rc7+ {[%clk 0:00:36.1]}
26... R5d7 {[%clk 0:00:51.1]} 27. Rxd7+ {[%clk 0:00:27.6]} 27... Rxd7 {[%clk
0:00:52]} 28. Rc1 {[%clk 0:00:28]} 28... Rd8 {[%clk 0:00:31.9]} 29. Rc7+ {[%clk
0:00:25.5]} 29... Kg6 {[%clk 0:00:32.4]} 30. Re7 {[%clk 0:00:26.2]} 30... Kxh6
{[%clk 0:00:28.9]} 31. fxg5+ {[%clk 0:00:25.4]} 31... fxg5 {[%clk 0:00:27]} 32.
Rxe6+ {[%clk 0:00:26]} 32... Kh5 {[%clk 0:00:27.4]} 33. Re7 {[%clk 0:00:22.5]}
33... Kg4 {[%clk 0:00:24.6]} 34. Rxh7 {[%clk 0:00:22.5]} 34... Kxg3 {[%clk
0:00:24.4]} 35. Bxg5 {[%clk 0:00:21.1]} 35... Rg8 {[%clk 0:00:13.2]} 36. Bf6
{[%clk 0:00:16.6]} 36... Bxf6 {[%clk 0:00:11.6]} 37. exf6 {[%clk 0:00:17.5]}
37... Rf8 {[%clk 0:00:10.1]} 38. Rxa7 {[%clk 0:00:15.4]} 38... Rxf6 {[%clk
0:00:09.1]} 39. Re7 {[%clk 0:00:16.1]} 39... Kf3 {[%clk 0:00:08.7]} 40. Kc3
{[%clk 0:00:15.6]} 40... Rc6+ {[%clk 0:00:08.3]} 41. Kb4 {[%clk 0:00:15.7]}
41... Rd6 {[%clk 0:00:06.6]} 42. Kc4 {[%clk 0:00:15.6]} 42... Rc6+ {[%clk
0:00:05.5]} 43. Kd5 {[%clk 0:00:12.8]} 43... Rc2 {[%clk 0:00:06.1]} 44. Ra7
{[%clk 0:00:08.7]} 44... Kf4 {[%clk 0:00:05.4]} 45. a4 {[%clk 0:00:06.4]} 45...
Kf5 {[%clk 0:00:04.9]} 46. Rf7+ {[%clk 0:00:06]} 46... Kg6 {[%clk 0:00:05]} 47.
Rb7 {[%clk 0:00:06.1]} 47... Rb2 {[%clk 0:00:02.1]} 48. Kc6 {[%clk 0:00:05]}
48... Kf5 {[%clk 0:00:02]} 49. Rxb6 {[%clk 0:00:04.9]} 49... Rc2+ {[%clk
0:00:02]} 50. Kd5 {[%clk 0:00:05.1]} 50... Ra2 {[%clk 0:00:02.5]} 51. Rb4 {[%clk
0:00:05.1]} 51... Kf6 {[%clk 0:00:03.4]} 52. Rb6+ {[%clk 0:00:04.9]} 52... Ke7
{[%clk 0:00:04]} 53. Ra6 {[%clk 0:00:05.8]} 53... Kd8 {[%clk 0:00:04.4]} 54. Ra7
{[%clk 0:00:06]} 54... Kc8 {[%clk 0:00:04.7]} 55. a5 {[%clk 0:00:06.2]} 55...
Kb8 {[%clk 0:00:05.1]} 56. Ra6 {[%clk 0:00:05.3]} 56... Kb7 {[%clk 0:00:05.4]}
57. Rb6+ {[%clk 0:00:05.8]} 57... Kc7 {[%clk 0:00:06.1]} 58. Rb5 {[%clk
0:00:06.2]} 58... Ra3 {[%clk 0:00:05.8]} 59. Rc5+ {[%clk 0:00:05.8]} 59... Kb7
{[%clk 0:00:05.6]} 60. Kc4 {[%clk 0:00:05.5]} 60... Ra1 {[%clk 0:00:05.6]} 61.
Kd5 {[%clk 0:00:05.3]} 61... Ka6 {[%clk 0:00:04.7]} 62. Kd6 {[%clk 0:00:05.4]}
62... Re1 {[%clk 0:00:04.3]} 63. d5 {[%clk 0:00:05.9]} 63... Rh1 {[%clk
0:00:04.7]} 64. Kc6 {[%clk 0:00:02.8]} 64... Rh8 {[%clk 0:00:04.2]} 65. d6
{[%clk 0:00:03]} 65... Rc8+ {[%clk 0:00:04.1]} 66. Kd5 {[%clk 0:00:03.7]} 66...
Rb8 {[%clk 0:00:03.9]} 67. d7 {[%clk 0:00:04.1]} 67... Rd8 {[%clk 0:00:03.4]}
68. Kd6 {[%clk 0:00:04.6]} 68... Kb7 {[%clk 0:00:03.6]} 69. Ke7 {[%clk
0:00:04.4]} 69... Ra8 {[%clk 0:00:02.9]} 70. d8=Q {[%clk 0:00:04.9]} 70... Rxd8
{[%clk 0:00:03.1]} 71. Kxd8 {[%clk 0:00:05.8]} 71... Ka7 {[%clk 0:00:03.5]} 72.
Kd7 {[%clk 0:00:06.3]} 72... Ka6 {[%clk 0:00:04]} 73. Kc6 {[%clk 0:00:06.3]}
73... Ka7 {[%clk 0:00:04.9]} 74. Rb5 {[%clk 0:00:06.6]} 74... Ka6 {[%clk
0:00:05.8]} 75. Rb7 {[%clk 0:00:06.2]} 75... Kxa5 {[%clk 0:00:05.8]} 76. Kc5
{[%clk 0:00:06.9]} 76... Ka6 {[%clk 0:00:06.1]} 77. Rc7 {[%clk 0:00:07.2]} 77...
Ka5 {[%clk 0:00:06.4]} 78. Ra7# {[%clk 0:00:08.1]} 1-0

[Event "Late-Titled-Tuesday-Blitz-May-28-2024"]
[Site "Chess.com"]
[Date "2024.05.28"]
[Round "6"]
[White "Fonsofan"]
[Black "rdarruda"]
[Result "1/2-1/2"]
[WhiteElo "2777"]
[BlackElo "2562"]
[TimeControl "180+1"]
[EndTime "15:08:25 PDT"]
[Termination "Game drawn - insufficient material"]

1. e4 {[%clk 0:02:47.1]} 1... c5 {[%clk 0:02:59.8]} 2. Nf3 {[%clk 0:02:45.7]}
2... Nc6 {[%clk 0:02:59.7]} 3. g3 {[%clk 0:02:45.3]} 3... Nf6 {[%clk 0:02:58.7]}
4. d3 {[%clk 0:02:44.6]} 4... d5 {[%clk 0:02:56.9]} 5. Nbd2 {[%clk 0:02:41.6]}
5... g6 {[%clk 0:02:54.9]} 6. Bg2 {[%clk 0:02:41.9]} 6... Bg7 {[%clk 0:02:54.9]}
7. O-O {[%clk 0:02:42.6]} 7... O-O {[%clk 0:02:54.9]} 8. c3 {[%clk 0:02:43.2]}
8... dxe4 {[%clk 0:02:51.7]} 9. dxe4 {[%clk 0:02:41.6]} 9... b6 {[%clk
0:02:51.3]} 10. Qe2 {[%clk 0:02:42.2]} 10... Bb7 {[%clk 0:02:42.2]} 11. Re1
{[%clk 0:02:06.1]} 11... e6 {[%clk 0:02:40.6]} 12. e5 {[%clk 0:02:05.7]} 12...
Nd5 {[%clk 0:02:39.2]} 13. Nc4 {[%clk 0:02:05.7]} 13... Ba6 {[%clk 0:02:35.7]}
14. Qe4 {[%clk 0:02:03.7]} 14... Bxc4 {[%clk 0:02:31]} 15. Qxc4 {[%clk
0:02:03.8]} 15... Qc7 {[%clk 0:02:31.1]} 16. Qe4 {[%clk 0:01:54.8]} 16... Rad8
{[%clk 0:02:28.7]} 17. h4 {[%clk 0:01:54.6]} 17... h6 {[%clk 0:02:28]} 18. Bd2
{[%clk 0:01:50.7]} 18... Rd7 {[%clk 0:02:23.4]} 19. Re2 {[%clk 0:01:50.3]} 19...
Rfd8 {[%clk 0:02:23.1]} 20. Rae1 {[%clk 0:01:47.9]} 20... b5 {[%clk 0:02:14.8]}
21. c4 {[%clk 0:01:24.6]} 21... bxc4 {[%clk 0:02:13.5]} 22. Qxc4 {[%clk
0:01:25.2]} 22... Qb6 {[%clk 0:02:07.1]} 23. b3 {[%clk 0:01:23.9]} 23... Ndb4
{[%clk 0:02:03.8]} 24. Be3 {[%clk 0:01:21.7]} 24... Nd3 {[%clk 0:02:00]} 25. Rb1
{[%clk 0:01:10.9]} 25... Qb4 {[%clk 0:01:58.5]} 26. Rc2 {[%clk 0:00:56.8]} 26...
Qxc4 {[%clk 0:01:41.3]} 27. Rxc4 {[%clk 0:00:56.1]} 27... Ncxe5 {[%clk
0:01:37.9]} 28. Nxe5 {[%clk 0:00:55.6]} 28... Bxe5 {[%clk 0:01:38.5]} 29. Bf1
{[%clk 0:00:51.4]} 29... Bd4 {[%clk 0:01:30.2]} 30. Bxd4 {[%clk 0:00:45.7]}
30... Rxd4 {[%clk 0:01:29.6]} 31. Bxd3 {[%clk 0:00:46.2]} 31... Rxd3 {[%clk
0:01:28.6]} 32. Rxc5 {[%clk 0:00:46.8]} 32... Rd1+ {[%clk 0:01:28.5]} 33. Rxd1
{[%clk 0:00:45.8]} 33... Rxd1+ {[%clk 0:01:29.4]} 34. Kg2 {[%clk 0:00:46]} 34...
Rd7 {[%clk 0:01:21.6]} 35. Kf3 {[%clk 0:00:45.1]} 35... Kf8 {[%clk 0:01:21.7]}
36. Ke3 {[%clk 0:00:44.8]} 36... Ke7 {[%clk 0:01:21.5]} 37. Ra5 {[%clk
0:00:44.4]} 37... h5 {[%clk 0:01:20.9]} 38. b4 {[%clk 0:00:43.2]} 38... Kf6
{[%clk 0:01:18.3]} 39. a4 {[%clk 0:00:41.4]} 39... e5 {[%clk 0:01:17.5]} 40. b5
{[%clk 0:00:38.6]} 40... Kf5 {[%clk 0:01:14.5]} 41. Ra6 {[%clk 0:00:38.8]} 41...
f6 {[%clk 0:01:07.5]} 42. Rc6 {[%clk 0:00:30.8]} 42... Rd4 {[%clk 0:01:06.1]}
43. Ra6 {[%clk 0:00:29.7]} 43... Rd7 {[%clk 0:01:05.9]} 44. a5 {[%clk
0:00:24.3]} 44... Rd5 {[%clk 0:01:01.5]} 45. Rxa7 {[%clk 0:00:18.1]} 45... Rxb5
{[%clk 0:01:00.7]} 46. a6 {[%clk 0:00:18.5]} 46... Rb3+ {[%clk 0:01:00.7]} 47.
Ke2 {[%clk 0:00:18.5]} 47... Ra3 {[%clk 0:01:00]} 48. Kf1 {[%clk 0:00:16.8]}
48... Kg4 {[%clk 0:00:53.6]} 49. Kg2 {[%clk 0:00:16.3]} 49... e4 {[%clk
0:00:50.1]} 50. Rg7 {[%clk 0:00:15.7]} 50... Rxa6 {[%clk 0:00:45.4]} 51. Rxg6+
{[%clk 0:00:16.2]} 51... Kf5 {[%clk 0:00:43.8]} 52. Rh6 {[%clk 0:00:16.5]} 52...
Ra2 {[%clk 0:00:43.5]} 53. Kf1 {[%clk 0:00:10.6]} 53... Ra1+ {[%clk 0:00:42.8]}
54. Kg2 {[%clk 0:00:08.5]} 54... Ra2 {[%clk 0:00:43.1]} 55. Rxh5+ {[%clk
0:00:07.1]} 55... Kg4 {[%clk 0:00:43.1]} 56. Rh8 {[%clk 0:00:05.8]} 56... e3
{[%clk 0:00:43.6]} 57. Rg8+ {[%clk 0:00:06.3]} 57... Kf5 {[%clk 0:00:40.5]} 58.
Kf3 {[%clk 0:00:06.9]} 58... exf2 {[%clk 0:00:39.9]} 59. Kg2 {[%clk 0:00:07.3]}
59... Ke4 {[%clk 0:00:30.3]} 60. Re8+ {[%clk 0:00:05.9]} 60... Kf5 {[%clk
0:00:30]} 61. Rg8 {[%clk 0:00:06.1]} 61... Ke4 {[%clk 0:00:30]} 62. Re8+ {[%clk
0:00:05.9]} 62... Kf5 {[%clk 0:00:30.2]} 63. Re3 {[%clk 0:00:05.8]} 63... f1=Q+
{[%clk 0:00:12.8]} 64. Kxf1 {[%clk 0:00:05.8]} 64... Kg4 {[%clk 0:00:13.7]} 65.
Re2 {[%clk 0:00:02.3]} 65... Ra3 {[%clk 0:00:09.3]} 66. Kf2 {[%clk 0:00:01.7]}
66... Rxg3 {[%clk 0:00:08.7]} 67. Re4+ {[%clk 0:00:02.1]} 67... Kf5 {[%clk
0:00:08.7]} 68. Kxg3 {[%clk 0:00:01]} 68... Kxe4 {[%clk 0:00:08.7]} 69. Kg4
{[%clk 0:00:01.5]} 69... f5+ {[%clk 0:00:08.2]} 70. Kg5 {[%clk 0:00:01.6]} 70...
f4 {[%clk 0:00:08]} 71. h5 {[%clk 0:00:02.5]} 71... f3 {[%clk 0:00:08.4]} 72. h6
{[%clk 0:00:03.3]} 72... f2 {[%clk 0:00:09.1]} 73. h7 {[%clk 0:00:04]} 73...
f1=Q {[%clk 0:00:09.8]} 74. h8=Q {[%clk 0:00:04.6]} 74... Qf5+ {[%clk
0:00:07.3]} 75. Kh6 {[%clk 0:00:05]} 75... Qh3+ {[%clk 0:00:06.4]} 76. Kg7
{[%clk 0:00:05.4]} 76... Qxh8+ {[%clk 0:00:06.9]} 77. Kxh8 {[%clk 0:00:05.4]}
1/2-1/2